[Event "Titled Tuesday Blitz July 4 Early 2023"]
[White "Harsha Bharathakoti"]
[Black "Pranav, V"]
[WhiteFideId "5078776"]
[BlackFideId "25060783"]
[WhiteElo "2863"]
[BlackElo "3002"]
[Result "0-1"]
[Round "5"]
[TimeControl "180+2"]
[Date "2023.07.04"]
[WhiteClock "0:00:00"]
[BlackClock "0:00:06"]
[Board "16"]

1. c4 {[%clk 0:02:49]}  c5 {[%clk 0:02:58]} 2. Nf3 {[%clk 0:02:49]}  Nc6 {[%clk 0:02:57]} 3. Nc3 {[%clk 0:02:48]}  Nf6 {[%clk 0:02:57]} 4. e3 {[%clk 0:02:49]}  e5 {[%clk 0:02:54]} 5. d4 {[%clk 0:02:47]}  cxd4 {[%clk 0:02:53]} 6. exd4 {[%clk 0:02:48]}  e4 {[%clk 0:02:54]} 7. Nd2 {[%clk 0:02:10]}  Bb4 {[%clk 0:02:49]} 8. a3 {[%clk 0:02:10]}  Bxc3 {[%clk 0:02:50]} 9. bxc3 {[%clk 0:02:11]}  O-O {[%clk 0:02:50]} 10. Be2 {[%clk 0:02:10]}  Re8 {[%clk 0:02:49]} 11. O-O {[%clk 0:02:10]}  d5 {[%clk 0:02:47]} 12. Re1 {[%clk 0:02:10]}  Be6 {[%clk 0:02:39]} 13. Bb2 {[%clk 0:02:00]}  dxc4 {[%clk 0:02:20]} 14. Nxc4 {[%clk 0:02:00]}  Rc8 {[%clk 0:02:19]} 15. Ne3 {[%clk 0:01:55]}  Na5 {[%clk 0:02:18]} 16. a4 {[%clk 0:01:15]}  Nd5 {[%clk 0:02:16]} 17. Rc1 {[%clk 0:00:54]}  Nxe3 {[%clk 0:02:06]} 18. fxe3 {[%clk 0:00:54]}  Qg5 {[%clk 0:02:07]} 19. Kh1 {[%clk 0:00:50]}  Bc4 {[%clk 0:02:04]} 20. Bg4 {[%clk 0:00:49]}  f5 {[%clk 0:02:03]} 21. Bh3 {[%clk 0:00:50]}  g6 {[%clk 0:01:59]} 22. Ba3 {[%clk 0:00:50]}  Bd5 {[%clk 0:01:59]} 23. Bd6 {[%clk 0:00:47]}  Nc4 {[%clk 0:01:48]} 24. Bf4 {[%clk 0:00:47]}  Qf6 {[%clk 0:01:48]} 25. Qe2 {[%clk 0:00:39]}  Rc6 {[%clk 0:01:39]} 26. Rf1 {[%clk 0:00:36]}  Qe7 {[%clk 0:01:24]} 27. g4 {[%clk 0:00:28]}  g5 {[%clk 0:01:00]} 28. Bg3 {[%clk 0:00:28]}  f4 {[%clk 0:00:59]} 29. exf4 {[%clk 0:00:29]}  e3+ {[%clk 0:00:56]} 30. Bg2 {[%clk 0:00:29]}  Bxg2+ {[%clk 0:00:56]} 31. Qxg2 {[%clk 0:00:30]}  Nd2 {[%clk 0:00:45]} 32. Rfe1 {[%clk 0:00:30]}  h6 {[%clk 0:00:42]} 33. f5 {[%clk 0:00:29]}  Qe4 {[%clk 0:00:36]} 34. d5 {[%clk 0:00:27]}  Rc4 {[%clk 0:00:27]} 35. h3 {[%clk 0:00:23]}  Qd3 {[%clk 0:00:18]} 36. Re2 {[%clk 0:00:20]}  Ne4 {[%clk 0:00:17]} 37. Rce1 {[%clk 0:00:17]}  Nxc3 {[%clk 0:00:16]} 38. Rc2 {[%clk 0:00:13]}  Nxd5 {[%clk 0:00:12]} 39. Rxc4 {[%clk 0:00:10]}  Qxc4 {[%clk 0:00:13]} 40. Qb2 {[%clk 0:00:10]}  b6 {[%clk 0:00:12]} 41. Kh2 {[%clk 0:00:08]}  Qe4 {[%clk 0:00:12]} 42. Qb3 {[%clk 0:00:07]}  Rc8 {[%clk 0:00:11]} 43. Re2 {[%clk 0:00:07]}  Rc1 {[%clk 0:00:07]} 44. Rg2 {[%clk 0:00:00]}  e2 {[%clk 0:00:06]} 0-1


[Site "https://www.chess.com"]

[Event "Titled Tuesday Blitz July 4 Early 2023"]
[White "Gholami Orimi, Mahdi"]
[Black "Khismatullin, Denis"]
[WhiteFideId "12558486"]
[BlackFideId "4142578"]
[WhiteElo "2856"]
[BlackElo "2992"]
[Result "1-0"]
[Round "5"]
[TimeControl "180+2"]
[Date "2023.07.04"]
[WhiteClock "0:00:06"]
[BlackClock "0:00:09"]
[Board "17"]

1. d4 {[%clk 0:02:56]}  Nf6 {[%clk 0:02:59]} 2. c4 {[%clk 0:02:57]}  e6 {[%clk 0:02:59]} 3. Nc3 {[%clk 0:02:57]}  Bb4 {[%clk 0:02:58]} 4. Qc2 {[%clk 0:02:57]}  O-O {[%clk 0:02:58]} 5. e4 {[%clk 0:02:57]}  d6 {[%clk 0:02:58]} 6. e5 {[%clk 0:02:57]}  Nfd7 {[%clk 0:02:53]} 7. Nf3 {[%clk 0:02:42]}  c5 {[%clk 0:02:35]} 8. a3 {[%clk 0:02:40]}  Bxc3+ {[%clk 0:02:33]} 9. bxc3 {[%clk 0:02:27]}  cxd4 {[%clk 0:02:34]} 10. exd6 {[%clk 0:02:27]}  Qa5 {[%clk 0:02:19]} 11. Bd2 {[%clk 0:02:23]}  d3 {[%clk 0:01:49]} 12. Bxd3 {[%clk 0:02:23]}  h6 {[%clk 0:01:50]} 13. O-O {[%clk 0:02:21]}  Nc5 {[%clk 0:01:50]} 14. Bh7+ {[%clk 0:02:11]}  Kh8 {[%clk 0:01:50]} 15. Rfe1 {[%clk 0:02:01]}  Nbd7 {[%clk 0:01:49]} 16. Ne5 {[%clk 0:01:58]}  Qa4 {[%clk 0:01:24]} 17. Rad1 {[%clk 0:01:44]}  b6 {[%clk 0:01:16]} 18. Qb1 {[%clk 0:01:17]}  Bb7 {[%clk 0:01:08]} 19. Bc2 {[%clk 0:01:15]}  Qxa3 {[%clk 0:01:08]} 20. Qb4 {[%clk 0:01:00]}  Qa2 {[%clk 0:00:59]} 21. Bb1 {[%clk 0:00:56]}  Qa6 {[%clk 0:00:59]} 22. Nxd7 {[%clk 0:00:50]}  Nxd7 {[%clk 0:00:59]} 23. c5 {[%clk 0:00:50]}  Nxc5 {[%clk 0:00:40]} 24. Qh4 {[%clk 0:00:49]}  Qa4 {[%clk 0:00:29]} 25. c4 {[%clk 0:00:45]}  f5 {[%clk 0:00:18]} 26. Bxh6 {[%clk 0:00:39]}  Kg8 {[%clk 0:00:18]} 27. Bg5 {[%clk 0:00:28]}  Rf7 {[%clk 0:00:18]} 28. Be7 {[%clk 0:00:22]}  Re8 {[%clk 0:00:18]} 29. Rc1 {[%clk 0:00:20]}  Qc6 {[%clk 0:00:17]} 30. f3 {[%clk 0:00:19]}  Qd7 {[%clk 0:00:17]} 31. Rc3 {[%clk 0:00:17]}  Rexe7 {[%clk 0:00:17]} 32. dxe7 {[%clk 0:00:18]}  Rxe7 {[%clk 0:00:17]} 33. Rcc1 {[%clk 0:00:17]}  Qe8 {[%clk 0:00:15]} 34. Bxf5 {[%clk 0:00:16]}  Rd7 {[%clk 0:00:13]} 35. Qh7+ {[%clk 0:00:16]}  Kf8 {[%clk 0:00:14]} 36. Bg6 {[%clk 0:00:15]}  Qd8 {[%clk 0:00:13]} 37. Qh8+ {[%clk 0:00:13]}  Ke7 {[%clk 0:00:14]} 38. Qxg7+ {[%clk 0:00:13]}  Kd6 {[%clk 0:00:15]} 39. Rcd1+ {[%clk 0:00:14]}  Kc7 {[%clk 0:00:15]} 40. Rxd7+ {[%clk 0:00:15]}  Nxd7 {[%clk 0:00:16]} 41. Rd1 {[%clk 0:00:14]}  Bc6 {[%clk 0:00:17]} 42. Qd4 {[%clk 0:00:12]}  Qg5 {[%clk 0:00:16]} 43. Be4 {[%clk 0:00:12]}  Qe7 {[%clk 0:00:14]} 44. Bxc6 {[%clk 0:00:12]}  Kxc6 {[%clk 0:00:15]} 45. h4 {[%clk 0:00:12]}  Nc5 {[%clk 0:00:15]} 46. h5 {[%clk 0:00:12]}  Qg5 {[%clk 0:00:15]} 47. Qg4 {[%clk 0:00:11]}  Qe3+ {[%clk 0:00:15]} 48. Kh1 {[%clk 0:00:11]}  Qe2 {[%clk 0:00:14]} 49. Rg1 {[%clk 0:00:10]}  Qe3 {[%clk 0:00:14]} 50. Qg6 {[%clk 0:00:09]}  Nd3 {[%clk 0:00:14]} 51. Kh2 {[%clk 0:00:07]}  Qf4+ {[%clk 0:00:14]} 52. Qg3 {[%clk 0:00:07]}  Qf5 {[%clk 0:00:14]} 53. Qg4 {[%clk 0:00:05]}  Qe5+ {[%clk 0:00:14]} 54. g3 {[%clk 0:00:05]}  Qe2+ {[%clk 0:00:13]} 55. Rg2 {[%clk 0:00:06]}  Qe3 {[%clk 0:00:14]} 56. Qe4+ {[%clk 0:00:06]}  Qxe4 {[%clk 0:00:13]} 57. fxe4 {[%clk 0:00:07]}  Ne5 {[%clk 0:00:14]} 58. g4 {[%clk 0:00:07]}  Kd6 {[%clk 0:00:13]} 59. g5 {[%clk 0:00:07]}  Ke7 {[%clk 0:00:09]} 60. Kg3 {[%clk 0:00:06]} 1-0


[Site "https://www.chess.com"]

[Event "Titled Tuesday Blitz July 4 Early 2023"]
[White "Xiong, Jeffery"]
[Black "Gavrilov, Maxim"]
[WhiteFideId "2047640"]
[BlackFideId "24271454"]
[WhiteElo "2928"]
[BlackElo "2566"]
[Result "0-1"]
[Round "5"]
[TimeControl "180+2"]
[Date "2023.07.04"]
[WhiteClock "0:01:01"]
[BlackClock "0:00:31"]
[Board "18"]

1. e4 {[%clk 0:03:00]}  c5 {[%clk 0:02:59]} 2. Nf3 {[%clk 0:03:00]}  d6 {[%clk 0:02:59]} 3. Nc3 {[%clk 0:03:01]}  Nf6 {[%clk 0:02:58]} 4. d4 {[%clk 0:03:01]}  cxd4 {[%clk 0:02:59]} 5. Qxd4 {[%clk 0:03:02]}  Nc6 {[%clk 0:02:59]} 6. Qd3 {[%clk 0:03:02]}  g6 {[%clk 0:02:56]} 7. Nd5 {[%clk 0:03:02]}  Bg7 {[%clk 0:02:56]} 8. c3 {[%clk 0:03:03]}  O-O {[%clk 0:02:56]} 9. Bg5 {[%clk 0:03:03]}  Nd7 {[%clk 0:02:46]} 10. Qe3 {[%clk 0:02:55]}  a6 {[%clk 0:02:35]} 11. Be2 {[%clk 0:02:54]}  b5 {[%clk 0:02:20]} 12. Nd4 {[%clk 0:02:42]}  Ndb8 {[%clk 0:01:58]} 13. O-O {[%clk 0:02:39]}  Bb7 {[%clk 0:01:56]} 14. Nxc6 {[%clk 0:02:35]}  Nxc6 {[%clk 0:01:55]} 15. a4 {[%clk 0:02:36]}  bxa4 {[%clk 0:01:51]} 16. Rxa4 {[%clk 0:02:37]}  Re8 {[%clk 0:01:47]} 17. b4 {[%clk 0:02:17]}  Ne5 {[%clk 0:01:34]} 18. Rfa1 {[%clk 0:02:16]}  Rc8 {[%clk 0:01:26]} 19. Bxa6 {[%clk 0:02:12]}  Bxa6 {[%clk 0:01:26]} 20. Rxa6 {[%clk 0:02:13]}  Nc4 {[%clk 0:01:24]} 21. Qe2 {[%clk 0:02:02]}  h6 {[%clk 0:01:18]} 22. Bh4 {[%clk 0:01:25]}  g5 {[%clk 0:01:18]} 23. Bg3 {[%clk 0:01:25]}  e6 {[%clk 0:01:18]} 24. Ne3 {[%clk 0:01:26]}  Nxe3 {[%clk 0:01:10]} 25. Qxe3 {[%clk 0:01:27]}  Rxc3 {[%clk 0:01:08]} 26. Qd2 {[%clk 0:01:26]}  Qc8 {[%clk 0:00:39]} 27. Re1 {[%clk 0:01:19]}  Qxa6 {[%clk 0:00:37]} 28. e5 {[%clk 0:01:01]}  Rd3 {[%clk 0:00:31]} 0-1


[Site "https://www.chess.com"]

[Event "Titled Tuesday Blitz July 4 Early 2023"]
[White "Madaminov, Mukhiddin"]
[Black "Bauman_Guy"]
[WhiteFideId "14210703"]
[WhiteElo "3022"]
[BlackElo "2695"]
[Result "0-1"]
[Round "5"]
[TimeControl "180+2"]
[Date "2023.07.04"]
[WhiteClock "0:00:00"]
[BlackClock "0:00:39"]
[Board "22"]

1. e4 {[%clk 0:03:00]}  c5 {[%clk 0:02:46]} 2. Nf3 {[%clk 0:03:00]}  d6 {[%clk 0:02:45]} 3. d4 {[%clk 0:03:01]}  Nf6 {[%clk 0:02:45]} 4. Nc3 {[%clk 0:03:00]}  cxd4 {[%clk 0:02:45]} 5. Nxd4 {[%clk 0:03:01]}  a6 {[%clk 0:02:45]} 6. a3 {[%clk 0:03:00]}  e5 {[%clk 0:02:45]} 7. Nf5 {[%clk 0:03:00]}  d5 {[%clk 0:02:45]} 8. Bg5 {[%clk 0:03:01]}  d4 {[%clk 0:02:45]} 9. Bxf6 {[%clk 0:03:01]}  gxf6 {[%clk 0:02:46]} 10. Nb1 {[%clk 0:03:01]}  Bxf5 {[%clk 0:02:44]} 11. exf5 {[%clk 0:03:02]}  Qd5 {[%clk 0:02:43]} 12. Qd3 {[%clk 0:03:02]}  Nd7 {[%clk 0:02:42]} 13. Nd2 {[%clk 0:03:02]}  Qa5 {[%clk 0:02:38]} 14. Qh3 {[%clk 0:02:43]}  Bb4 {[%clk 0:02:31]} 15. O-O-O {[%clk 0:02:29]}  Bxd2+ {[%clk 0:02:30]} 16. Rxd2 {[%clk 0:02:30]}  Rc8 {[%clk 0:02:29]} 17. Qh6 {[%clk 0:02:19]}  Ke7 {[%clk 0:02:22]} 18. h4 {[%clk 0:02:18]}  Nc5 {[%clk 0:02:19]} 19. Rh3 {[%clk 0:02:10]}  Ne4 {[%clk 0:02:00]} 20. Re2 {[%clk 0:02:08]}  Qc5 {[%clk 0:01:51]} 21. f4 {[%clk 0:01:39]}  d3 {[%clk 0:01:31]} 22. Rxd3 {[%clk 0:01:36]}  Qg1 {[%clk 0:01:31]} 23. Rd1 {[%clk 0:01:28]}  Rhd8 {[%clk 0:01:26]} 24. Rde1 {[%clk 0:01:27]}  Ng3 {[%clk 0:01:08]} 25. Rxe5+ {[%clk 0:01:06]}  fxe5 {[%clk 0:01:03]} 26. Qg5+ {[%clk 0:01:01]}  Kf8 {[%clk 0:00:48]} 27. Qxg3 {[%clk 0:00:45]}  Qd4 {[%clk 0:00:47]} 28. c3 {[%clk 0:00:09]}  Qd2+ {[%clk 0:00:44]} 29. Kb1 {[%clk 0:00:09]}  exf4 {[%clk 0:00:44]} 30. Qg5 {[%clk 0:00:05]}  Qxe1+ {[%clk 0:00:44]} 31. Ka2 {[%clk 0:00:06]}  Qxf1 {[%clk 0:00:42]} 32. f6 {[%clk 0:00:05]}  Qc4+ {[%clk 0:00:42]} 33. Kb1 {[%clk 0:00:04]}  Qd3+ {[%clk 0:00:39]} 34. Ka1 {[%clk 0:00:00]}  Qd1+ {[%clk 0:00:39]} 0-1


[Site "https://www.chess.com"]

[Event "Titled Tuesday Blitz July 4 Early 2023"]
[White "Makarian, Rudik"]
[Black "Goryachkina, Aleksandra"]
[WhiteFideId "44105681"]
[BlackFideId "4147103"]
[WhiteElo "2993"]
[BlackElo "2693"]
[Result "0-1"]
[Round "5"]
[TimeControl "180+2"]
[Date "2023.07.04"]
[WhiteClock "0:00:00"]
[BlackClock "0:00:02"]
[Board "23"]

1. d4 {[%clk 0:03:00]}  Nf6 {[%clk 0:02:59]} 2. c4 {[%clk 0:03:00]}  e6 {[%clk 0:02:59]} 3. Nf3 {[%clk 0:03:00]}  d5 {[%clk 0:02:56]} 4. Nc3 {[%clk 0:03:01]}  Bb4 {[%clk 0:02:50]} 5. Qa4+ {[%clk 0:02:51]}  Nc6 {[%clk 0:02:49]} 6. Bd2 {[%clk 0:02:51]}  dxc4 {[%clk 0:02:37]} 7. e3 {[%clk 0:02:50]}  Bd7 {[%clk 0:02:33]} 8. Qc2 {[%clk 0:02:50]}  Na5 {[%clk 0:02:23]} 9. Rd1 {[%clk 0:02:50]}  O-O {[%clk 0:02:14]} 10. Ne5 {[%clk 0:02:47]}  b5 {[%clk 0:02:03]} 11. Nxb5 {[%clk 0:02:32]}  Bxd2+ {[%clk 0:01:28]} 12. Qxd2 {[%clk 0:02:33]}  Bxb5 {[%clk 0:01:16]} 13. Qxa5 {[%clk 0:02:33]}  Qd5 {[%clk 0:01:12]} 14. a4 {[%clk 0:01:47]}  Bd7 {[%clk 0:01:08]} 15. Nxc4 {[%clk 0:01:47]}  Rab8 {[%clk 0:00:52]} 16. Qxa7 {[%clk 0:01:29]}  Ra8 {[%clk 0:00:40]} 17. Qc5 {[%clk 0:01:20]}  Bxa4 {[%clk 0:00:39]} 18. Rc1 {[%clk 0:01:13]}  Qb7 {[%clk 0:00:32]} 19. f3 {[%clk 0:00:57]}  Nd5 {[%clk 0:00:17]} 20. Be2 {[%clk 0:00:43]}  Bb5 {[%clk 0:00:17]} 21. Kf2 {[%clk 0:00:28]}  Bxc4 {[%clk 0:00:17]} 22. Qxc4 {[%clk 0:00:29]}  Qxb2 {[%clk 0:00:16]} 23. Rc2 {[%clk 0:00:26]}  Qa3 {[%clk 0:00:16]} 24. Qd3 {[%clk 0:00:21]}  Qxd3 {[%clk 0:00:15]} 25. Bxd3 {[%clk 0:00:22]}  Nb4 {[%clk 0:00:15]} 26. Rd2 {[%clk 0:00:20]}  Nxd3+ {[%clk 0:00:15]} 27. Rxd3 {[%clk 0:00:21]}  Ra2+ {[%clk 0:00:16]} 28. Kg3 {[%clk 0:00:22]}  Rb8 {[%clk 0:00:15]} 29. Rc3 {[%clk 0:00:20]}  Rbb2 {[%clk 0:00:12]} 30. Rg1 {[%clk 0:00:18]}  Rc2 {[%clk 0:00:12]} 31. Rxc2 {[%clk 0:00:16]}  Rxc2 {[%clk 0:00:13]} 32. Ra1 {[%clk 0:00:12]}  g6 {[%clk 0:00:13]} 33. Ra5 {[%clk 0:00:10]}  Kf8 {[%clk 0:00:07]} 34. f4 {[%clk 0:00:09]}  Ke7 {[%clk 0:00:06]} 35. Kf3 {[%clk 0:00:09]}  h5 {[%clk 0:00:04]} 36. h3 {[%clk 0:00:07]}  Kd6 {[%clk 0:00:04]} 37. Ra6+ {[%clk 0:00:04]}  Kd7 {[%clk 0:00:04]} 38. g4 {[%clk 0:00:04]}  hxg4+ {[%clk 0:00:05]} 39. hxg4 {[%clk 0:00:05]}  Rc1 {[%clk 0:00:05]} 40. Ke4 {[%clk 0:00:04]}  Ke7 {[%clk 0:00:04]} 41. Ra7 {[%clk 0:00:03]}  Kd6 {[%clk 0:00:03]} 42. g5 {[%clk 0:00:03]}  Rb1 {[%clk 0:00:03]} 43. Ra6+ {[%clk 0:00:03]}  Ke7 {[%clk 0:00:03]} 44. Rc6 {[%clk 0:00:03]}  Kd7 {[%clk 0:00:03]} 45. Rc2 {[%clk 0:00:03]}  Kd6 {[%clk 0:00:03]} 46. Ra2 {[%clk 0:00:03]}  Rb6 {[%clk 0:00:03]} 47. Ra8 {[%clk 0:00:03]}  Rb5 {[%clk 0:00:03]} 48. Ra6+ {[%clk 0:00:02]}  Ke7 {[%clk 0:00:03]} 49. Ra7 {[%clk 0:00:02]}  Kd6 {[%clk 0:00:04]} 50. Ra8 {[%clk 0:00:02]}  Ke7 {[%clk 0:00:04]} 51. Rh8 {[%clk 0:00:02]}  Kd6 {[%clk 0:00:04]} 52. Kd3 {[%clk 0:00:03]}  Ke7 {[%clk 0:00:04]} 53. Ra8 {[%clk 0:00:02]}  Rb3+ {[%clk 0:00:04]} 54. Ke2 {[%clk 0:00:02]}  Rb2+ {[%clk 0:00:04]} 55. Kf3 {[%clk 0:00:03]}  Rb3 {[%clk 0:00:04]} 56. Ra6 {[%clk 0:00:03]}  Rb4 {[%clk 0:00:04]} 57. Ke4 {[%clk 0:00:03]}  Rb5 {[%clk 0:00:01]} 58. Rc6 {[%clk 0:00:02]}  Kd7 {[%clk 0:00:01]} 59. Rc5 {[%clk 0:00:02]}  Rb7 {[%clk 0:00:01]} 60. Ke5 {[%clk 0:00:03]}  Ke7 {[%clk 0:00:02]} 61. e4 {[%clk 0:00:03]}  Ra7 {[%clk 0:00:02]} 62. d5 {[%clk 0:00:02]}  exd5 {[%clk 0:00:02]} 63. exd5 {[%clk 0:00:03]}  Kd7 {[%clk 0:00:01]} 64. Kf6 {[%clk 0:00:03]}  Kd6 {[%clk 0:00:01]} 65. Rc1 {[%clk 0:00:03]}  Kxd5 {[%clk 0:00:02]} 66. Kxf7 {[%clk 0:00:03]}  Ke4 {[%clk 0:00:02]} 67. Rf1 {[%clk 0:00:02]}  Kf5 {[%clk 0:00:02]} 68. Kg7 {[%clk 0:00:01]}  c5+ {[%clk 0:00:02]} 69. Kh6 {[%clk 0:00:00]}  Rc7 {[%clk 0:00:02]} 0-1


[Site "https://www.chess.com"]

[Event "Titled Tuesday Blitz July 4 Early 2023"]
[White "Fromm, Marius"]
[Black "Eljanov, Pavel"]
[WhiteFideId "12993190"]
[BlackFideId "14102951"]
[WhiteElo "2682"]
[BlackElo "2936"]
[Result "1-0"]
[Round "5"]
[TimeControl "180+2"]
[Date "2023.07.04"]
[WhiteClock "0:00:18"]
[BlackClock "0:00:00"]
[Board "27"]

1. e4 {[%clk 0:03:00]}  c6 {[%clk 0:02:59]} 2. d4 {[%clk 0:02:59]}  d5 {[%clk 0:03:00]} 3. exd5 {[%clk 0:02:59]}  cxd5 {[%clk 0:03:00]} 4. Bd3 {[%clk 0:03:00]}  Nf6 {[%clk 0:03:00]} 5. h3 {[%clk 0:03:00]}  g6 {[%clk 0:02:59]} 6. Nf3 {[%clk 0:03:00]}  Bf5 {[%clk 0:03:00]} 7. Be2 {[%clk 0:02:55]}  Nc6 {[%clk 0:02:58]} 8. c3 {[%clk 0:02:55]}  e6 {[%clk 0:02:59]} 9. Bf4 {[%clk 0:02:54]}  Bd6 {[%clk 0:02:46]} 10. Bxd6 {[%clk 0:02:54]}  Qxd6 {[%clk 0:02:47]} 11. Nbd2 {[%clk 0:02:53]}  O-O-O {[%clk 0:02:42]} 12. b4 {[%clk 0:02:41]}  Ne4 {[%clk 0:02:39]} 13. Nxe4 {[%clk 0:02:21]}  dxe4 {[%clk 0:02:38]} 14. Nd2 {[%clk 0:02:21]}  e5 {[%clk 0:02:03]} 15. Nc4 {[%clk 0:02:16]}  Qc7 {[%clk 0:01:55]} 16. d5 {[%clk 0:01:36]}  Ne7 {[%clk 0:00:57]} 17. d6 {[%clk 0:01:20]}  Qc6 {[%clk 0:00:56]} 18. Qb3 {[%clk 0:00:56]}  Rxd6 {[%clk 0:00:25]} 19. Nxd6+ {[%clk 0:00:53]}  Qxd6 {[%clk 0:00:25]} 20. O-O {[%clk 0:00:51]}  Be6 {[%clk 0:00:24]} 21. c4 {[%clk 0:00:51]}  Nc6 {[%clk 0:00:23]} 22. a3 {[%clk 0:00:27]}  Nd4 {[%clk 0:00:22]} 23. Qb2 {[%clk 0:00:26]}  f5 {[%clk 0:00:22]} 24. Rac1 {[%clk 0:00:24]}  f4 {[%clk 0:00:21]} 25. c5 {[%clk 0:00:24]}  Qc7 {[%clk 0:00:17]} 26. Bc4 {[%clk 0:00:23]}  Bf5 {[%clk 0:00:09]} 27. Rfe1 {[%clk 0:00:20]}  Kb8 {[%clk 0:00:08]} 28. Bd5 {[%clk 0:00:20]}  f3 {[%clk 0:00:03]} 29. Bxe4 {[%clk 0:00:20]}  fxg2 {[%clk 0:00:02]} 30. Bxg2 {[%clk 0:00:19]}  e4 {[%clk 0:00:00]} 31. Qxd4 {[%clk 0:00:18]} 1-0


[Site "https://www.chess.com"]

[Event "Titled Tuesday Blitz July 4 Early 2023"]
[White "Velikanov, Alexander"]
[Black "Matlakov, Maxim"]
[WhiteFideId "2039290"]
[BlackFideId "4168003"]
[WhiteElo "2673"]
[BlackElo "2929"]
[Result "0-1"]
[Round "5"]
[TimeControl "180+2"]
[Date "2023.07.04"]
[WhiteClock "0:01:20"]
[BlackClock "0:02:23"]
[Board "28"]

1. e4 {[%clk 0:03:00]}  e5 {[%clk 0:02:58]} 2. Nf3 {[%clk 0:03:01]}  Nf6 {[%clk 0:02:58]} 3. Nc3 {[%clk 0:03:00]}  Nc6 {[%clk 0:02:57]} 4. Bb5 {[%clk 0:03:01]}  Bd6 {[%clk 0:02:57]} 5. d3 {[%clk 0:02:59]}  O-O {[%clk 0:02:56]} 6. a3 {[%clk 0:02:59]}  Ne7 {[%clk 0:02:55]} 7. Bg5 {[%clk 0:02:55]}  Ng6 {[%clk 0:02:53]} 8. Nd5 {[%clk 0:02:55]}  c6 {[%clk 0:02:53]} 9. Nxf6+ {[%clk 0:02:42]}  gxf6 {[%clk 0:02:54]} 10. Bh6 {[%clk 0:02:42]}  cxb5 {[%clk 0:02:53]} 11. h4 {[%clk 0:02:35]}  Re8 {[%clk 0:02:52]} 12. h5 {[%clk 0:02:36]}  Nf4 {[%clk 0:02:52]} 13. Nh4 {[%clk 0:02:28]}  Bf8 {[%clk 0:02:37]} 14. Bxf8 {[%clk 0:01:44]}  Rxf8 {[%clk 0:02:34]} 15. g3 {[%clk 0:01:33]}  Ne6 {[%clk 0:02:32]} 16. f4 {[%clk 0:01:33]}  d5 {[%clk 0:02:30]} 17. Nf5 {[%clk 0:01:26]}  dxe4 {[%clk 0:02:28]} 18. Qg4+ {[%clk 0:01:26]}  Kh8 {[%clk 0:02:28]} 19. O-O-O {[%clk 0:01:23]}  Rg8 {[%clk 0:02:27]} 20. Qe2 {[%clk 0:01:22]}  Nd4 {[%clk 0:02:23]} 21. Nxd4 {[%clk 0:01:20]} 0-1


[Site "https://www.chess.com"]

[Event "Titled Tuesday Blitz July 4 Early 2023"]
[White "Koziorowicz, Michal"]
[Black "Ibarra Jerez, Jose Carlos"]
[WhiteFideId "21809194"]
[BlackFideId "2226332"]
[WhiteElo "2661"]
[BlackElo "2907"]
[Result "1-0"]
[Round "5"]
[TimeControl "180+2"]
[Date "2023.07.04"]
[WhiteClock "0:00:43"]
[BlackClock "0:00:01"]
[Board "30"]

1. e4 {[%clk 0:03:00]}  c5 {[%clk 0:02:57]} 2. Nf3 {[%clk 0:03:00]}  e6 {[%clk 0:02:57]} 3. g3 {[%clk 0:03:00]}  Nc6 {[%clk 0:02:57]} 4. Bg2 {[%clk 0:03:01]}  Nf6 {[%clk 0:02:57]} 5. Nc3 {[%clk 0:03:00]}  d6 {[%clk 0:02:52]} 6. d4 {[%clk 0:03:00]}  cxd4 {[%clk 0:02:52]} 7. Nxd4 {[%clk 0:03:01]}  Bd7 {[%clk 0:02:52]} 8. Ndb5 {[%clk 0:02:53]}  Qb8 {[%clk 0:02:51]} 9. Bf4 {[%clk 0:02:53]}  Ne5 {[%clk 0:02:50]} 10. O-O {[%clk 0:02:51]}  a6 {[%clk 0:02:46]} 11. Nd4 {[%clk 0:02:51]}  Be7 {[%clk 0:02:43]} 12. Re1 {[%clk 0:02:50]}  O-O {[%clk 0:02:43]} 13. h3 {[%clk 0:02:49]}  Nc4 {[%clk 0:02:43]} 14. Bc1 {[%clk 0:02:49]}  Rc8 {[%clk 0:02:40]} 15. b3 {[%clk 0:02:48]}  Ne5 {[%clk 0:02:38]} 16. Bb2 {[%clk 0:02:49]}  b5 {[%clk 0:02:34]} 17. f4 {[%clk 0:02:48]}  Qb6 {[%clk 0:02:34]} 18. Kh2 {[%clk 0:02:48]}  Nc6 {[%clk 0:02:32]} 19. Nce2 {[%clk 0:02:47]}  Rab8 {[%clk 0:02:27]} 20. c3 {[%clk 0:02:45]}  d5 {[%clk 0:02:13]} 21. Nxc6 {[%clk 0:02:36]}  Bxc6 {[%clk 0:02:10]} 22. e5 {[%clk 0:02:36]}  Ne4 {[%clk 0:02:07]} 23. Nd4 {[%clk 0:02:33]}  b4 {[%clk 0:02:06]} 24. c4 {[%clk 0:02:27]}  Nc3 {[%clk 0:01:58]} 25. Qd2 {[%clk 0:02:21]}  Ba8 {[%clk 0:01:58]} 26. cxd5 {[%clk 0:02:19]}  Bxd5 {[%clk 0:01:55]} 27. Bxd5 {[%clk 0:02:18]}  Nxd5 {[%clk 0:01:55]} 28. Rac1 {[%clk 0:02:17]}  Nc3 {[%clk 0:01:53]} 29. Re3 {[%clk 0:01:32]}  Rd8 {[%clk 0:01:32]} 30. Rd3 {[%clk 0:01:32]}  Rd5 {[%clk 0:01:18]} 31. Bxc3 {[%clk 0:01:28]}  bxc3 {[%clk 0:01:18]} 32. Qxc3 {[%clk 0:01:29]}  Rbd8 {[%clk 0:01:07]} 33. Rcd1 {[%clk 0:01:25]}  h5 {[%clk 0:01:00]} 34. h4 {[%clk 0:01:20]}  Qa7 {[%clk 0:00:59]} 35. Kh3 {[%clk 0:01:18]}  Qd7 {[%clk 0:00:57]} 36. b4 {[%clk 0:01:14]}  f6 {[%clk 0:00:54]} 37. Qc4 {[%clk 0:01:12]}  fxe5 {[%clk 0:00:48]} 38. fxe5 {[%clk 0:01:12]}  a5 {[%clk 0:00:45]} 39. a3 {[%clk 0:01:12]}  axb4 {[%clk 0:00:42]} 40. axb4 {[%clk 0:01:13]}  Rc8 {[%clk 0:00:40]} 41. Qb3 {[%clk 0:01:10]}  Rd8 {[%clk 0:00:31]} 42. Qc4 {[%clk 0:01:08]}  Kh8 {[%clk 0:00:24]} 43. Kg2 {[%clk 0:01:06]}  Qb7 {[%clk 0:00:16]} 44. Kh3 {[%clk 0:01:04]}  Rxe5 {[%clk 0:00:16]} 45. Nf3 {[%clk 0:01:02]}  Rxd3 {[%clk 0:00:15]} 46. Rxd3 {[%clk 0:01:02]}  Rf5 {[%clk 0:00:13]} 47. Qb3 {[%clk 0:00:54]}  Qe4 {[%clk 0:00:08]} 48. Re3 {[%clk 0:00:52]}  Qg4+ {[%clk 0:00:07]} 49. Kg2 {[%clk 0:00:52]}  Bxb4 {[%clk 0:00:05]} 50. Qxe6 {[%clk 0:00:51]}  Bc5 {[%clk 0:00:05]} 51. Qe8+ {[%clk 0:00:50]}  Rf8 {[%clk 0:00:05]} 52. Ng5 {[%clk 0:00:44]}  Bxe3 {[%clk 0:00:01]} 53. Qxf8# {[%clk 0:00:43]} 1-0


[Site "https://www.chess.com"]